bitfinex-derivatives/quotes_BNBF0:USTF0_20250907
["timestamp","ask_amount","ask_price","bid_price","bid_amount"]
[1757241397863,0.19953385,872.0,869.84,0.72778282]
[1757241398061,0.19953385,872.0,869.85,0.72778282]
[1757241398361,0.19953385,872.0,869.86,0.72778282]
[1757241398560,0.19953385,872.0,869.87,0.72778282]
[1757241398762,0.19953385,872.0,869.88,0.72778282]
[1757241399064,0.19953385,872.0,869.89,0.72778282]
[1757241399264,0.19953385,872.0,869.9,0.72778282]
[1757241399462,0.19953385,872.0,869.91,0.72778282]
[1757241399664,0.19953385,872.0,869.54,0.76982156]
[1757241399864,0.19953385,872.0,869.55,0.7280173]
[1757241400065,0.19953385,872.0,869.56,0.7280173]
[1757241400265,0.19953385,872.0,869.57,0.7280173]
[1757241400467,0.19953385,872.0,869.58,0.7280173]
[1757241400769,0.19953385,872.0,869.59,0.7280173]
[1757241400965,0.19953385,872.0,869.6,0.7280173]
[1757241401165,0.19953385,872.0,869.61,0.7280173]
[1757241401371,0.19953385,872.0,869.62,0.7280173]
[1757241401567,0.19953385,872.0,869.63,0.7280173]
[1757241401765,0.19953385,872.0,869.64,0.7280173]
[1757241401965,0.19953385,872.0,869.65,0.7280173]
[1757241402165,0.19953385,872.0,869.66,0.7280173]
[1757241402368,0.19953385,872.0,869.67,0.7280173]
[1757241402568,0.19953385,872.0,869.68,0.7280173]
[1757241402767,0.19953385,872.0,869.69,0.7280173]
[1757241403064,0.19953385,872.0,869.7,0.7280173]
[1757241403265,0.19953385,872.0,869.71,0.7280173]
[1757241403465,0.19953385,872.0,869.72,0.7280173]
[1757241403664,2.5729193,871.85,869.73,0.7280173]
[1757241403866,2.5729193,871.85,869.74,0.7280173]
[1757241404066,2.5729193,871.85,869.75,0.7280173]
[1757241404268,2.5729193,871.85,869.76,0.7280173]
[1757241404564,2.5729193,871.85,869.77,0.7280173]
[1757241404766,2.5729193,871.83,869.78,0.7280173]
[1757241404968,2.5729193,871.83,869.79,0.7280173]
[1757241405169,2.5729193,871.83,869.8,0.7280173]
[1757241405470,2.5729193,871.81,869.81,0.7280173]
[1757241405672,2.5729193,871.81,869.82,0.7280173]
[1757241405875,2.5729193,871.69,869.83,0.7280173]
[1757241406071,2.5729193,871.69,869.84,0.7280173]
[1757241406276,2.5729193,871.69,869.58,0.76982156]
[1757241406277,2.5729193,871.66,869.85,0.7280173]
[1757241406474,2.5729193,871.66,869.58,0.76982156]
[1757241406675,2.5729193,871.66,869.59,0.72626224]
[1757241406874,2.5729193,871.68,869.63,0.76982156]
[1757241407078,2.5729193,871.68,869.64,0.72626224]
[1757241407278,2.5729193,871.68,869.65,0.72626224]
[1757241407574,2.5729193,871.72,869.66,0.72626224]
[1757241407777,2.5729193,871.72,869.67,0.72626224]
[1757241407980,2.5729193,871.85,869.68,0.72626224]
[1757241408276,2.5729193,871.85,869.69,0.72626224]
[1757241408475,2.5729193,871.83,869.7,0.72626224]
[1757241408678,2.5729193,871.83,869.71,0.72626224]
[1757241408876,2.5729193,871.83,869.72,0.72626224]
[1757241409080,2.5729193,871.83,869.73,0.72626224]
[1757241409381,2.5729193,871.8,869.74,0.72626224]
[1757241409581,2.5729193,871.8,869.75,0.72626224]
[1757241409877,2.5729193,871.8,869.76,0.72626224]
[1757241410081,2.5729193,871.8,869.77,0.72626224]
[1757241410381,2.5729193,871.8,869.78,0.72626224]
[1757241410681,2.5729193,871.76,869.79,0.72626224]
[1757241410881,2.5729193,871.76,869.8,0.72626224]
[1757241411081,2.5729193,871.76,869.81,0.72626224]
[1757241411282,2.5729193,871.76,869.82,0.72626224]
[1757241411484,2.5729193,871.73,869.83,0.72626224]
[1757241411781,2.5729193,871.73,869.84,0.72626224]
[1757241411978,2.5729193,871.73,869.85,0.72626224]
[1757241412281,2.5729193,871.73,869.86,0.72626224]
[1757241412581,2.5729193,871.69,869.87,0.72626224]
[1757241412778,2.5729193,871.69,869.88,0.72626224]
[1757241413081,2.5729193,871.69,869.89,0.72626224]
[1757241413282,2.5729193,871.69,869.58,0.76982156]
[1757241413480,2.5729193,871.69,869.59,0.72813662]
[1757241413679,2.5729193,871.65,869.6,0.72813662]
[1757241413883,2.5729193,871.65,869.61,0.72813662]
[1757241414080,2.5729193,871.65,869.62,0.72813662]
[1757241414281,2.5729193,871.64,869.63,0.72813662]
[1757241414482,2.5729193,871.64,869.64,0.72813662]
[1757241414684,2.5729193,871.75,869.65,0.72813662]
[1757241414882,2.5729193,871.75,869.66,0.72813662]
[1757241415081,2.5729193,871.75,869.67,0.72813662]
[1757241415283,2.5729193,871.8,869.68,0.72813662]
[1757241415582,2.5729193,871.8,869.69,0.72813662]
[1757241415784,2.5729193,871.46,869.7,0.72813662]
[1757241415988,2.5729193,871.46,869.71,0.72813662]
[1757241416185,2.5729193,871.48,869.72,0.72813662]
[1757241416388,2.5729193,871.48,869.73,0.72813662]
[1757241416586,2.5729193,871.48,869.74,0.72813662]
[1757241416791,2.5729193,871.52,869.75,0.72813662]
[1757241416987,2.5729193,871.52,869.76,0.72813662]
[1757241417286,2.5729193,871.53,869.77,0.72813662]
[1757241417490,2.5729193,871.53,869.53,0.76982156]
[1757241417491,2.5729193,871.53,869.78,0.72813662]
[1757241417690,2.5729193,871.53,869.79,0.72813662]
[1757241417888,2.5729193,871.51,869.8,0.72813662]
[1757241418092,2.5729193,871.51,869.81,0.72813662]
[1757241418393,2.5729193,871.35,869.82,0.72813662]
[1757241418591,2.5729193,871.35,869.83,0.72813662]
[1757241418892,2.5729193,871.36,869.84,0.72813662]
[1757241419093,2.5729193,871.36,869.54,0.76982156]
[1757241419389,2.5729193,871.34,869.56,0.76982156]
[1757241419590,1.1407069,871.34,869.57,0.73031611]
[1757241419894,3.611876,871.68,869.57,0.73031611]
[1757241420194,3.611876,871.68,869.58,1.50013767]
[1757241420495,3.611876,871.82,869.59,0.73031611]
[1757241420693,3.611876,871.82,869.6,0.73031611]
[1757241420893,3.611876,871.82,869.61,0.73031611]
[1757241421192,3.611876,871.82,869.58,0.76982156]
[1757241421193,3.611876,871.82,869.62,0.73031611]
[1757241421391,3.611876,871.82,869.63,0.73031611]
[1757241421591,3.611876,871.8,869.64,0.73031611]
[1757241421795,3.611876,871.8,869.65,0.73031611]
[1757241421992,3.611876,871.8,869.61,0.76982156]
[1757241421993,3.611876,871.8,869.66,0.73031611]
[1757241422191,3.611876,871.8,869.67,0.73031611]
[1757241422492,3.611876,871.79,869.68,0.73031611]
[1757241422696,3.611876,871.79,869.69,0.73031611]
[1757241422896,3.611876,871.79,869.7,0.73031611]
[1757241423196,3.611876,871.79,869.71,0.73031611]
[1757241423394,3.611876,871.79,869.72,0.73031611]
[1757241423597,3.611876,871.79,869.73,0.73031611]
[1757241423797,3.611876,871.79,869.74,0.73031611]
[1757241423998,3.611876,871.79,869.75,0.73031611]
[1757241424299,3.611876,871.79,869.76,0.73031611]
[1757241424495,3.611876,871.79,869.65,0.76982156]
[1757241424496,3.611876,871.79,869.77,0.73031611]
[1757241424798,3.611876,871.98,869.78,0.73031611]
[1757241425094,3.611876,871.98,869.79,0.73031611]
[1757241425298,3.611876,871.98,869.8,0.73031611]
[1757241425496,3.611876,871.98,869.81,0.73031611]
[1757241425699,3.81140985,872.0,869.82,0.73031611]
[1757241425994,3.81140985,872.0,869.83,0.73031611]
[1757241426197,3.81140985,872.0,869.84,0.73031611]
[1757241426396,3.81140985,872.0,869.85,0.73031611]
[1757241426601,3.81140985,872.0,869.86,0.73031611]
[1757241426897,3.81140985,872.0,869.87,0.73031611]
[1757241427102,3.81140985,872.0,869.88,0.73031611]
[1757241427300,3.81140985,872.0,869.89,0.73031611]
[1757241427600,3.81140985,872.0,869.9,0.73031611]
[1757241427801,3.81140985,872.0,869.91,0.73031611]
[1757241428096,3.81140985,872.0,869.92,0.73031611]
[1757241428297,3.81140985,872.0,869.64,0.76982156]
[1757241428298,3.81140985,872.0,869.93,0.73031611]
[1757241428499,2.57376473,871.59,869.94,0.73031611]
[1757241428697,2.57376473,871.59,869.95,0.73031611]
[1757241428899,2.57376473,871.59,869.96,0.73031611]
[1757241429100,2.57376473,871.59,869.97,0.73031611]
[1757241429302,2.57376473,871.59,869.98,0.73031611]
[1757241429504,2.57376473,871.57,869.99,0.73031611]
[1757241429704,2.57376473,871.57,870.0,0.73031611]
[1757241430003,2.57376473,871.57,869.72,0.19954758]
[1757241430202,2.57376473,871.54,869.73,0.7472743]
[1757241430402,2.57376473,871.54,869.74,0.7472743]
[1757241430599,2.57376473,871.54,869.75,0.7472743]
[1757241430803,2.57376473,871.54,869.76,0.7472743]
[1757241431003,2.57376473,871.54,869.77,0.7472743]
[1757241431301,2.57376473,871.54,869.78,0.7472743]
[1757241431504,2.57376473,871.54,869.79,0.7472743]
[1757241431804,2.57376473,871.54,869.8,0.7472743]
[1757241432005,2.57376473,871.54,869.81,0.7472743]
[1757241432203,2.57376473,871.55,869.82,0.7472743]
[1757241432405,2.57376473,871.55,869.83,0.7472743]
[1757241432606,2.57376473,871.54,869.84,0.7472743]
[1757241432903,2.57376473,871.54,869.85,0.7472743]
[1757241433102,2.57376473,871.54,869.86,0.7472743]
[1757241433306,2.57376473,871.54,869.87,0.7472743]
[1757241433606,2.57376473,871.54,869.88,0.7472743]
[1757241433802,2.57376473,871.35,869.89,0.7472743]
[1757241434008,2.57376473,871.35,869.9,0.7472743]
[1757241434202,2.57376473,871.35,869.91,0.7472743]
[1757241434409,2.57376473,871.35,869.92,0.7472743]
[1757241434707,2.57376473,871.35,869.72,0.19954758]
[1757241434708,2.57376473,871.35,869.93,0.7472743]
[1757241434902,2.57376473,871.35,869.94,0.7472743]
[1757241435106,2.57376473,871.35,869.72,0.19954758]
[1757241435402,2.57376473,871.35,869.73,0.74735107]
[1757241435706,2.57376473,871.35,869.74,0.74735107]
[1757241435904,2.57376473,871.35,869.72,0.19954758]
[1757241435905,2.57376473,871.35,869.75,0.74735107]
[1757241436107,2.57376473,871.35,869.76,0.74735107]
[1757241436405,2.57376473,871.36,869.77,0.74735107]
[1757241436603,2.57376473,871.36,869.78,0.74735107]
[1757241436905,2.57376473,871.56,869.83,0.76982156]
[1757241437108,2.57376473,871.56,869.84,0.74735107]
[1757241437307,2.57376473,871.56,869.85,0.74735107]
[1757241437506,2.57376473,871.56,869.86,0.74735107]
[1757241437804,2.57376473,871.56,869.87,0.74735107]
[1757241438006,2.57376473,871.56,869.88,0.74735107]
[1757241438207,2.57376473,871.56,869.89,0.74735107]
[1757241438408,2.57376473,871.56,869.9,0.74735107]
[1757241438711,2.57376473,871.56,869.91,0.74735107]
[1757241438912,2.57376473,871.56,869.92,0.74735107]
[1757241439215,2.57376473,871.56,869.93,0.74735107]
[1757241439510,2.57376473,871.56,869.94,0.74735107]
[1757241439810,2.57376473,871.56,869.95,0.74735107]
[1757241440008,2.57376473,871.56,869.96,0.74735107]
[1757241440309,2.57376473,871.56,869.97,0.74735107]
[1757241440508,2.57376473,871.56,869.98,0.74735107]
[1757241440808,2.57376473,871.56,869.99,0.74735107]
[1757241441112,2.57376473,871.57,870.0,0.74735107]
[1757241441308,2.57376473,871.57,870.01,0.74735107]
[1757241441512,2.57376473,871.59,870.02,0.74735107]
[1757241441709,2.57376473,871.59,870.03,0.74735107]
[1757241441914,2.57376473,871.59,870.04,0.74735107]
[1757241442114,2.57376473,871.6,870.05,0.74735107]
[1757241442316,2.57376473,871.6,870.06,0.74735107]
[1757241442611,2.57376473,871.59,870.07,0.74735107]
[1757241442816,2.57376473,871.59,870.08,0.74735107]
[1757241443017,2.57376473,871.59,870.09,0.74735107]
[1757241443217,2.57376473,871.77,870.1,0.74735107]
[1757241443412,2.57376473,871.77,870.11,0.74735107]
[1757241443712,2.77329858,872.0,870.12,0.74735107]
[1757241443911,2.77329858,872.0,870.13,0.74735107]
[1757241444116,2.77329858,872.0,870.14,0.74735107]
[1757241444413,2.77329858,872.0,870.15,0.74735107]
[1757241444613,2.77329858,872.0,870.16,0.74735107]
[1757241444815,2.77329858,872.0,870.17,0.74735107]
[1757241445014,2.77329858,872.0,869.76,0.76982156]
[1757241445216,2.77329858,872.0,869.77,0.74741483]
[1757241445415,2.77329858,872.0,869.78,0.74741483]
[1757241445714,2.77329858,872.0,869.79,0.74741483]
[1757241445913,2.77329858,872.0,869.8,0.74741483]
[1757241446117,2.77329858,872.0,869.81,0.74741483]
[1757241446316,2.77329858,872.0,869.82,0.74741483]
[1757241446514,2.77329858,872.0,869.83,0.74741483]
[1757241446714,2.77329858,872.0,869.84,0.74741483]
[1757241446920,2.77329858,872.0,869.85,0.74741483]
[1757241447119,2.77329858,872.0,869.86,0.74741483]
[1757241447415,2.57376473,871.75,869.87,0.74741483]
[1757241447620,2.57376473,871.75,869.88,0.74741483]
[1757241447916,2.57376473,871.75,869.89,0.74741483]
[1757241448115,2.57376473,871.75,869.9,0.74741483]
[1757241448417,2.57376473,871.75,869.91,0.74741483]
[1757241448619,2.57376473,871.75,869.92,0.74741483]
[1757241448818,2.57376473,871.75,869.72,0.19954758]
[1757241449018,2.57376473,871.75,869.73,0.74739603]
[1757241449229,2.57376473,871.75,869.74,0.74739603]
[1757241449430,2.57376473,871.75,869.75,0.74739603]
[1757241449631,2.57376473,871.75,869.76,0.74739603]
[1757241449931,2.57376473,871.75,869.77,0.74739603]
[1757241450131,2.57376473,871.75,869.78,0.74739603]
[1757241450330,2.57376473,871.75,869.79,0.74739603]
[1757241450628,2.57376473,871.75,869.8,0.74739603]
[1757241450827,2.57376473,871.75,869.81,0.74739603]
[1757241451029,2.57376473,871.74,869.82,0.74739603]
[1757241451228,2.57376473,871.74,869.83,0.74739603]
[1757241451428,2.57376473,871.74,869.84,0.74739603]
[1757241451632,2.57376473,871.73,869.85,0.74739603]
[1757241451832,2.57376473,871.73,869.86,0.74739603]
[1757241452032,2.57376473,871.73,869.87,0.74739603]
[1757241452332,2.57376473,871.73,869.88,0.74739603]
[1757241452532,2.57376473,871.73,869.89,0.74739603]
[1757241452833,0.19950868,872.14,869.9,0.74739603]
[1757241453133,0.19950868,872.14,869.91,0.74739603]
[1757241453329,0.19950868,872.14,869.92,0.74739603]
[1757241453531,0.19950868,872.14,869.93,0.74739603]
[1757241453729,0.19950868,872.14,869.94,0.74739603]
[1757241453933,0.19950868,872.14,869.95,0.74739603]
[1757241454133,2.57376473,871.78,869.96,0.74739603]
[1757241454327,2.57376473,871.78,869.97,0.74739603]
[1757241454532,2.57376473,871.78,869.98,0.74739603]
[1757241454833,2.57376473,871.79,869.99,0.74739603]
[1757241455034,2.57376473,871.79,870.0,0.74739603]
[1757241455333,2.57376473,871.79,870.01,0.74739603]
[1757241455532,2.57376473,871.79,870.02,0.74739603]
[1757241455731,2.57376473,872.06,870.03,0.74739603]
[1757241455935,2.57376473,872.06,870.04,0.74739603]
[1757241456232,2.57376473,872.07,870.05,0.74739603]
[1757241456535,2.57376473,872.07,870.06,0.74739603]
[1757241456734,2.57376473,872.03,870.07,0.74739603]
[1757241456933,2.57376473,872.03,870.08,0.74739603]
[1757241457134,2.57376473,872.03,870.09,0.74739603]
[1757241457333,2.57376473,872.03,870.1,0.74739603]
[1757241457633,2.57376473,872.03,870.11,0.74739603]
[1757241457833,2.57376473,872.03,870.12,0.74739603]
[1757241458036,2.57376473,872.03,870.13,0.74739603]
[1757241458334,0.19945551,872.34,870.14,0.74739603]
[1757241458638,0.19945551,872.34,870.15,0.74739603]
[1757241458938,0.19945551,872.34,870.16,0.74739603]
[1757241459139,0.19945551,872.34,870.17,0.74739603]
[1757241459338,0.19945551,872.34,870.18,0.74739603]
[1757241459636,0.19945551,872.34,870.19,0.74739603]
[1757241459839,0.19945551,872.34,870.2,0.74739603]
[1757241460138,0.19945551,872.34,870.21,0.74739603]
[1757241460338,0.19945551,872.34,870.22,0.74739603]
[1757241460539,0.19945551,872.34,870.23,0.74739603]
[1757241460737,0.19945551,872.34,870.24,0.74739603]
[1757241460935,0.19945551,872.34,870.25,0.74739603]
[1757241461241,0.19945551,872.34,870.26,0.74739603]
[1757241461436,0.19945551,872.34,870.27,0.74739603]
[1757241461640,0.19945551,872.34,870.28,0.74739603]
[1757241461836,0.19945551,872.34,870.29,0.74739603]
[1757241462040,0.19945551,872.34,870.3,0.74739603]
[1757241462340,0.19945551,872.34,870.31,0.74739603]
[1757241462538,0.19945551,872.34,870.32,0.74739603]
[1757241462742,0.19945551,872.34,870.33,0.74739603]
[1757241462942,8.237739,875.48,870.34,0.74389622]
[1757241462943,2.57376473,873.0,870.34,0.74389622]
[1757241463242,0.19938409,872.51,870.35,0.74389622]
[1757241463443,2.57376473,872.89,870.36,0.74389622]
[1757241463640,0.19935096,872.66,870.37,0.74389622]
[1757241463943,0.19935096,872.66,870.38,0.74389622]
[1757241464143,0.19935096,872.66,870.39,0.74389622]
[1757241464339,0.19935096,872.66,870.4,0.74389622]
[1757241464539,0.19935096,872.66,870.18,0.76982156]
[1757241464540,0.19935096,872.66,870.41,0.74389622]
[1757241464738,0.19935096,872.66,870.18,0.76982156]
[1757241464739,0.19935096,872.66,870.42,0.74389622]
[1757241464939,0.19935096,872.66,870.43,0.74389622]
[1757241465144,0.19935096,872.66,870.44,0.74389622]
[1757241465345,0.19935096,872.66,870.45,0.74389622]
[1757241465544,0.19935096,872.66,870.46,0.74389622]
[1757241465840,0.19935096,872.66,870.47,0.74389622]
[1757241466046,0.19935096,872.66,870.48,0.74389622]
[1757241466245,0.19935096,872.66,870.49,0.74389622]
[1757241466445,0.19935096,872.66,870.5,0.74389622]
[1757241466646,0.19935096,872.66,870.51,0.74389622]
[1757241466941,0.19935096,872.66,870.52,0.74389622]
[1757241467240,0.19935096,872.66,870.53,0.74389622]
[1757241467444,0.19935096,872.66,870.54,0.74389622]
[1757241467640,0.19935096,872.66,870.55,0.74389622]
[1757241467846,0.19935096,872.66,870.56,0.74389622]
[1757241468041,0.19935096,872.66,870.57,0.74389622]
[1757241468246,0.19935096,872.66,870.58,0.74389622]
[1757241468446,0.19935096,872.66,870.59,0.74389622]
[1757241468642,0.19935096,872.66,870.6,0.74389622]
[1757241468848,0.19935096,872.66,870.61,0.74389622]
[1757241469043,0.19935096,872.66,870.62,0.74389622]
[1757241469246,0.19935096,872.66,870.63,0.74389622]
[1757241469445,0.19935096,872.66,870.64,0.74389622]
[1757241469743,0.19935096,872.66,870.65,0.74389622]
[1757241470045,0.19935096,872.66,870.66,0.74389622]
[1757241470249,0.19935096,872.66,870.67,0.74389622]
[1757241470448,0.19935096,872.66,870.68,0.74389622]
[1757241470647,0.19935096,872.66,870.69,0.74389622]
[1757241470947,0.19935096,872.66,870.7,0.74389622]
[1757241471145,0.19935096,872.66,870.2,0.76982156]
[1757241471344,0.19935096,872.66,870.25,0.76982156]
[1757241471550,0.19935096,872.66,870.26,0.73926528]
[1757241471847,0.19935096,872.66,870.27,0.73926528]
[1757241472048,0.19935096,872.66,870.28,0.73926528]
[1757241472242,0.19935096,872.66,870.29,0.73926528]
[1757241472447,0.19935096,872.66,870.3,0.73926528]
[1757241472745,0.19935096,872.66,870.31,0.73926528]
[1757241472943,0.19935096,872.66,870.28,0.76982156]
[1757241472944,0.19935096,872.66,870.32,0.73926528]
[1757241473147,0.19935096,872.66,870.33,0.73926528]
[1757241473347,0.19935096,872.66,870.34,0.73926528]
[1757241473546,0.19935096,872.66,870.35,0.73926528]
[1757241473749,0.19935096,872.66,870.36,0.73926528]
[1757241473948,0.19935096,872.66,870.37,0.73926528]
[1757241474146,0.19935096,872.66,870.38,0.73926528]
[1757241474345,0.19935096,872.66,870.39,0.73926528]
[1757241474549,0.19935096,872.66,870.4,0.73926528]
[1757241474845,0.19935096,872.66,870.41,0.73926528]
[1757241475048,0.19935096,872.66,870.42,0.73926528]
[1757241475350,2.57376473,874.0,870.43,0.73926528]
[1757241475650,1.55879518,873.99,870.44,0.73926528]
[1757241475850,0.19927847,873.11,870.45,0.73926528]
[1757241476149,0.19927847,873.11,870.46,0.73926528]
[1757241476447,0.19927847,873.11,870.47,0.73926528]
[1757241476649,0.19927847,873.11,870.48,0.73926528]
[1757241476848,0.19927847,873.11,870.49,0.73926528]
[1757241477049,0.19927847,873.11,870.49,0.76982156]
[1757241477347,0.19927847,873.11,870.5,0.73926528]
[1757241477545,0.19927847,873.11,870.51,0.73926528]
[1757241477749,0.86830541,873.1,870.52,0.73926528]
[1757241477946,0.86830541,873.09,870.53,0.73926528]
[1757241478146,0.86830541,873.08,870.54,0.73926528]
[1757241478348,0.86830541,873.07,870.55,0.73926528]
[1757241478549,0.19927847,873.11,870.56,0.73926528]
[1757241478749,0.86807576,873.1,870.57,0.73926528]
[1757241478949,0.86807576,873.09,870.58,0.73926528]
[1757241479250,0.86807576,873.08,870.59,0.73926528]
[1757241479452,0.86807576,873.07,870.6,0.73926528]
[1757241479752,0.19927847,873.11,870.49,0.76982156]
[1757241479753,0.19927847,873.11,870.61,0.73926528]
[1757241479953,0.86788071,873.1,870.62,0.73926528]
[1757241480151,0.86788071,873.09,870.63,0.73926528]
[1757241480447,0.86788071,873.08,870.64,0.73926528]
[1757241480651,0.86788071,873.07,870.65,0.73926528]
[1757241480849,0.19927847,873.11,870.66,0.73926528]
[1757241481049,0.86794501,873.1,870.67,0.73926528]
[1757241481248,0.86794501,873.09,870.68,0.73926528]
[1757241481452,0.86794501,873.08,870.69,0.73926528]
[1757241481750,0.86794501,873.07,870.7,0.73926528]
[1757241481949,0.19927847,873.11,870.71,0.73926528]
[1757241482148,0.86777154,873.1,870.72,0.73926528]
[1757241482354,0.86777154,873.09,870.73,0.73926528]
[1757241482654,0.86777154,873.08,870.74,0.73926528]
[1757241482953,0.19927847,873.11,870.75,0.73926528]
[1757241483153,0.86760886,873.1,870.76,0.73926528]
[1757241483352,0.86760886,873.09,870.77,0.73926528]
[1757241483550,0.86760886,873.08,870.78,0.73926528]
[1757241483751,0.86760886,873.07,870.79,0.73926528]
[1757241483953,0.86760886,873.06,870.8,0.73926528]
[1757241484150,0.86760886,873.05,870.81,0.73926528]
[1757241484353,0.86760886,873.04,870.82,0.73926528]
[1757241484652,0.19927847,873.11,870.83,0.73926528]
[1757241484858,0.86734256,873.1,870.84,0.73926528]
[1757241485069,0.86734256,873.09,870.85,0.73926528]
[1757241485252,0.86734256,873.08,870.86,0.73926528]
[1757241485554,0.86734256,873.07,870.87,0.73926528]
[1757241485752,0.86734256,873.06,870.88,0.73926528]
[1757241485954,0.86734256,873.05,870.89,0.73926528]
[1757241486157,0.86734256,873.04,870.9,0.73926528]
[1757241486355,0.86734256,873.03,870.91,0.73926528]
[1757241486554,0.86734256,873.02,870.92,0.73926528]
[1757241486755,0.19927847,873.11,870.93,0.73926528]
[1757241486954,0.86715134,873.1,870.4,0.76982156]
[1757241487153,0.86715134,873.09,870.41,0.73658816]
[1757241487454,0.86715134,873.08,870.42,0.73658816]
[1757241487655,0.86715134,873.07,870.44,0.76982156]
[1757241487854,0.86715134,873.06,870.45,1.50640972]
[1757241488058,0.86715134,873.05,870.46,0.73658816]
[1757241488255,0.86715134,873.04,870.47,0.73658816]
[1757241488452,0.86715134,873.03,870.48,0.73658816]
[1757241488658,0.86715134,873.02,870.49,0.73658816]
[1757241488855,0.86715134,873.01,870.5,0.73658816]
[1757241489055,0.86715134,873.0,870.51,0.73658816]
[1757241489355,0.86715134,872.99,870.52,0.73658816]
[1757241489666,0.86715134,872.98,870.53,0.73658816]
[1757241489957,0.86715134,872.97,870.54,0.73658816]
[1757241490158,0.86715134,872.96,870.55,0.73658816]
[1757241490359,0.86715134,872.95,870.56,0.73658816]
[1757241490558,2.57376473,873.09,870.57,0.73658816]
[1757241490762,0.86698086,873.08,870.58,0.73658816]
[1757241490961,0.86698086,873.07,870.59,0.73658816]
[1757241491161,0.86698086,873.06,870.6,0.73658816]
[1757241491457,0.86698086,873.05,870.61,0.73658816]
[1757241491662,0.86698086,873.04,870.62,0.73658816]
[1757241491958,0.86698086,873.03,870.63,0.73658816]
[1757241492160,0.86698086,873.02,870.64,0.73658816]
[1757241492459,0.86698086,873.01,870.65,0.73658816]
[1757241492761,0.86698086,873.0,870.66,0.73658816]
[1757241492961,0.86698086,872.99,870.67,0.73658816]
[1757241493157,0.86698086,872.98,870.68,0.73658816]
[1757241493456,0.86698086,872.97,870.69,0.73658816]
[1757241493661,0.86698086,872.96,870.7,0.73658816]
[1757241493861,0.86698086,872.95,870.71,0.73658816]
[1757241494062,2.57376473,873.04,870.42,0.76982156]
[1757241494259,0.86704318,873.03,870.43,0.73173205]
[1757241494460,0.86704318,873.02,870.44,0.73173205]
[1757241494666,0.86704318,873.01,870.25,1.0241052]
[1757241494859,0.86704318,873.0,870.41,0.75745832]
[1757241495058,0.86704318,872.99,870.42,1.48927279]
[1757241495262,0.86704318,872.98,870.43,0.73181447]
[1757241495566,0.86704318,872.97,870.44,0.73181447]
[1757241495769,0.86704318,872.96,870.45,0.73181447]
[1757241495963,0.86704318,872.95,870.46,0.73181447]
[1757241496164,0.19927847,873.11,870.47,0.73181447]
[1757241496360,0.86733812,873.1,870.48,0.73181447]
[1757241496564,0.86733812,873.09,870.49,0.73181447]
[1757241496761,0.86733812,873.08,870.5,0.73181447]
[1757241496964,0.86733812,873.07,870.51,0.73181447]
[1757241497161,0.86733812,873.07,869.72,0.19954758]
[1757241497162,0.86733812,873.06,870.52,0.73181447]
[1757241497365,0.86733812,873.05,870.53,0.73181447]
[1757241497665,0.86733812,873.04,870.54,0.73181447]
[1757241497859,0.86733812,873.03,870.55,0.73181447]
[1757241498062,0.86733812,873.02,870.56,0.73181447]
[1757241498261,0.86733812,873.01,870.57,0.73181447]
[1757241498466,0.86733812,873.0,870.58,0.73181447]
[1757241498666,0.86733812,872.99,870.59,0.73181447]
[1757241498961,0.86733812,872.98,870.6,0.73181447]
[1757241499167,0.86733812,872.97,870.61,0.73181447]
[1757241499376,2.7730432,873.11,870.62,0.73181447]
[1757241499567,0.86785119,873.1,870.63,0.73181447]
[1757241499768,0.86785119,873.09,870.64,0.73181447]
[1757241499965,0.86785119,873.08,870.65,0.73181447]
[1757241500170,0.86785119,873.07,870.66,0.73181447]
[1757241500463,0.86785119,873.06,870.67,0.73181447]
[1757241500668,0.86785119,873.05,870.68,0.73181447]
[1757241500866,0.86785119,873.04,870.69,0.73181447]
[1757241501069,0.86785119,873.03,870.7,0.73181447]
[1757241501267,0.86785119,873.02,870.71,0.73181447]
[1757241501470,0.86785119,873.01,870.72,0.73181447]
[1757241501667,0.86785119,873.0,870.4,0.75745832]
[1757241501871,0.86785119,872.99,870.4,0.75745832]
[1757241502171,0.86785119,872.98,870.4,0.75745832]
[1757241502368,2.57376473,873.03,870.4,0.75745832]
[1757241502567,0.86855427,873.02,870.4,0.75745832]
[1757241502767,0.86855427,873.01,870.41,0.73443838]
[1757241502973,2.57376473,872.97,870.42,0.73443838]
[1757241503167,2.57376473,872.97,870.43,0.73443838]
[1757241503372,2.57376473,872.97,870.44,0.73443838]
[1757241503668,2.57376473,872.94,870.45,0.73443838]
[1757241503871,2.57376473,872.94,870.46,0.73443838]
[1757241504071,0.19927847,873.11,870.47,0.73443838]
[1757241504371,0.85694034,873.1,870.48,0.73443838]
[1757241504571,0.85694034,873.09,870.49,0.73443838]
[1757241504768,0.85694034,873.08,870.5,0.73443838]
[1757241504968,0.19927847,873.11,870.51,0.73443838]
[1757241505167,0.85719977,873.1,870.52,0.73443838]
[1757241505371,0.85719977,873.09,870.53,0.73443838]
[1757241505671,0.85719977,873.08,870.54,0.73443838]
[1757241505871,0.19927847,873.11,870.55,0.73443838]
[1757241506073,0.8575408,873.1,870.56,0.73443838]
[1757241506273,0.8575408,873.09,870.57,0.73443838]
[1757241506569,0.8575408,873.08,870.58,0.73443838]
[1757241506773,0.19927847,873.11,870.59,0.73443838]